[Event "December 5 Late 2023"]
[Site "https://www.chess.com"]
[Date "2023.12.05"]
[Round "2"]
[White "Janaszak, Dawid"]
[Black "Stevens, Matthew"]
[Result "1/2-1/2"]
[Board "121"]
[TimeControl "180+1"]
[WhiteFideId "1119206"]
[BlackFideId "2067633"]
[WhiteElo "2580"]
[BlackElo "2340"]
[WhiteTeam "POL"]
[BlackTeam "USA"]
[WhiteClock "0:00:08"]
[BlackClock "0:00:09"]

1. e4 {[%clk 0:03:00]}  c6 {[%clk 0:02:57]} 2. d4 {[%clk 0:03:00]}  d5 {[%clk 0:02:58]} 3. exd5 {[%clk 0:03:01]}  cxd5 {[%clk 0:02:58]} 4. Bd3 {[%clk 0:03:01]}  Nf6 {[%clk 0:02:59]} 5. c3 {[%clk 0:03:01]}  Nc6 {[%clk 0:02:57]} 6. Bf4 {[%clk 0:03:01]}  Bg4 {[%clk 0:02:57]} 7. Qb3 {[%clk 0:02:59]}  Qc8 {[%clk 0:02:58]} 8. Nd2 {[%clk 0:02:59]}  e6 {[%clk 0:02:58]} 9. Ngf3 {[%clk 0:03:00]}  Bh5 {[%clk 0:02:59]} 10. O-O {[%clk 0:03:00]}  Be7 {[%clk 0:02:59]} 11. Rae1 {[%clk 0:02:59]}  O-O {[%clk 0:02:58]} 12. Ne5 {[%clk 0:02:59]}  Nxe5 {[%clk 0:02:56]} 13. Bxe5 {[%clk 0:02:59]}  Bg6 {[%clk 0:02:56]} 14. Bxg6 {[%clk 0:02:54]}  hxg6 {[%clk 0:02:57]} 15. Nf3 {[%clk 0:02:52]}  Qc6 {[%clk 0:02:56]} 16. Qd1 {[%clk 0:02:48]}  b5 {[%clk 0:02:54]} 17. Ng5 {[%clk 0:02:46]}  Nd7 {[%clk 0:01:59]} 18. Nf3 {[%clk 0:02:31]}  b4 {[%clk 0:01:57]} 19. Re3 {[%clk 0:02:30]}  bxc3 {[%clk 0:01:53]} 20. bxc3 {[%clk 0:02:31]}  Qc4 {[%clk 0:01:48]} 21. a4 {[%clk 0:02:12]}  Nxe5 {[%clk 0:01:29]} 22. Nxe5 {[%clk 0:02:12]}  Qc7 {[%clk 0:01:30]} 23. Qg4 {[%clk 0:02:09]}  Rab8 {[%clk 0:01:21]} 24. h4 {[%clk 0:02:09]}  Rb3 {[%clk 0:01:15]} 25. Rc1 {[%clk 0:02:03]}  Rfb8 {[%clk 0:00:58]} 26. h5 {[%clk 0:01:53]}  Rb1 {[%clk 0:00:36]} 27. Rxb1 {[%clk 0:01:54]}  Rxb1+ {[%clk 0:00:37]} 28. Kh2 {[%clk 0:01:54]}  gxh5 {[%clk 0:00:37]} 29. Qxh5 {[%clk 0:01:54]}  g6 {[%clk 0:00:38]} 30. Qg4 {[%clk 0:01:48]}  Bf6 {[%clk 0:00:34]} 31. f4 {[%clk 0:01:37]}  Rb3 {[%clk 0:00:32]} 32. Nxg6 {[%clk 0:01:01]}  fxg6 {[%clk 0:00:31]} 33. Qxg6+ {[%clk 0:01:02]}  Qg7 {[%clk 0:00:30]} 34. Qe8+ {[%clk 0:01:03]}  Qf8 {[%clk 0:00:23]} 35. Qxe6+ {[%clk 0:01:02]}  Qf7 {[%clk 0:00:23]} 36. Rg3+ {[%clk 0:01:00]}  Bg7 {[%clk 0:00:22]} 37. Qc8+ {[%clk 0:00:56]}  Qf8 {[%clk 0:00:21]} 38. Qc7 {[%clk 0:00:51]}  Qf7 {[%clk 0:00:20]} 39. Qd8+ {[%clk 0:00:51]}  Qf8 {[%clk 0:00:20]} 40. Qxd5+ {[%clk 0:00:51]}  Qf7 {[%clk 0:00:20]} 41. Qa8+ {[%clk 0:00:50]}  Kh7 {[%clk 0:00:19]} 42. Rh3+ {[%clk 0:00:48]}  Bh6 {[%clk 0:00:19]} 43. Qe4+ {[%clk 0:00:47]}  Qg6 {[%clk 0:00:19]} 44. f5 {[%clk 0:00:41]}  Qd6+ {[%clk 0:00:19]} 45. Kh1 {[%clk 0:00:25]}  Qf6 {[%clk 0:00:11]} 46. Qf4 {[%clk 0:00:13]}  Rb1+ {[%clk 0:00:05]} 47. Kh2 {[%clk 0:00:13]}  Rb7 {[%clk 0:00:02]} 48. Qg3 {[%clk 0:00:11]}  Rg7 {[%clk 0:00:02]} 49. Qf4 {[%clk 0:00:10]}  Rf7 {[%clk 0:00:02]} 50. Rh5 {[%clk 0:00:10]}  Rg7 {[%clk 0:00:02]} 51. Qf3 {[%clk 0:00:10]}  Rg5 {[%clk 0:00:03]} 52. Qb7+ {[%clk 0:00:09]}  Kg8 {[%clk 0:00:02]} 53. Qc8+ {[%clk 0:00:09]}  Kg7 {[%clk 0:00:02]} 54. Qd7+ {[%clk 0:00:10]}  Qf7 {[%clk 0:00:03]} 55. Rxg5+ {[%clk 0:00:09]}  Bxg5 {[%clk 0:00:02]} 56. Qc6 {[%clk 0:00:08]}  Qxf5 {[%clk 0:00:02]} 57. Qb7+ {[%clk 0:00:08]}  Kg6 {[%clk 0:00:02]} 58. g3 {[%clk 0:00:06]}  Qf2+ {[%clk 0:00:02]} 59. Qg2 {[%clk 0:00:07]}  Qxg2+ {[%clk 0:00:02]} 60. Kxg2 {[%clk 0:00:08]}  Bd2 {[%clk 0:00:03]} 61. Kf3 {[%clk 0:00:09]}  Bxc3 {[%clk 0:00:03]} 62. Ke4 {[%clk 0:00:08]}  Bb4 {[%clk 0:00:04]} 63. Kd5 {[%clk 0:00:08]}  Kf6 {[%clk 0:00:05]} 64. Kc6 {[%clk 0:00:08]}  Bc3 {[%clk 0:00:05]} 65. d5 {[%clk 0:00:09]}  Ke7 {[%clk 0:00:06]} 66. Kb7 {[%clk 0:00:06]}  Be5 {[%clk 0:00:07]} 67. Kxa7 {[%clk 0:00:06]}  Kd6 {[%clk 0:00:07]} 68. Kb7 {[%clk 0:00:06]}  Bxg3 {[%clk 0:00:07]} 69. a5 {[%clk 0:00:06]}  Kxd5 {[%clk 0:00:08]} 70. a6 {[%clk 0:00:07]}  Bf2 {[%clk 0:00:09]} 71. Kb8 {[%clk 0:00:07]}  Bb6 {[%clk 0:00:09]} 72. a7 {[%clk 0:00:08]}  Bxa7+ {[%clk 0:00:09]} 1/2-1/2

[Event "December 5 Late 2023"]
[Site "https://www.chess.com"]
[Date "2023.12.05"]
[Round "2"]
[White "youngdinousaur"]
[Black "Roberson, Peter T"]
[Result "0-1"]
[Board "124"]
[TimeControl "180+1"]
[BlackFideId "412384"]
[WhiteElo "2328"]
[BlackElo "2557"]
[BlackTeam "ENG"]
[WhiteClock "0:00:00"]
[BlackClock "0:00:03"]

1. d4 {[%clk 0:03:00]}  Nf6 {[%clk 0:02:59]} 2. Nf3 {[%clk 0:03:01]}  c5 {[%clk 0:02:59]} 3. c3 {[%clk 0:03:00]}  g6 {[%clk 0:02:56]} 4. Bf4 {[%clk 0:02:59]}  Bg7 {[%clk 0:02:57]} 5. e3 {[%clk 0:02:59]}  O-O {[%clk 0:02:57]} 6. Nbd2 {[%clk 0:02:57]}  Nh5 {[%clk 0:02:53]} 7. Bg5 {[%clk 0:02:54]}  h6 {[%clk 0:02:53]} 8. Bh4 {[%clk 0:02:54]}  d6 {[%clk 0:02:54]} 9. Bd3 {[%clk 0:02:49]}  b6 {[%clk 0:02:52]} 10. Rc1 {[%clk 0:02:36]}  Bb7 {[%clk 0:02:29]} 11. O-O {[%clk 0:02:27]}  Nd7 {[%clk 0:02:28]} 12. Bb1 {[%clk 0:02:25]}  Rc8 {[%clk 0:02:19]} 13. Re1 {[%clk 0:02:23]}  Ndf6 {[%clk 0:02:18]} 14. e4 {[%clk 0:02:18]}  g5 {[%clk 0:02:11]} 15. Bg3 {[%clk 0:02:15]}  cxd4 {[%clk 0:02:11]} 16. cxd4 {[%clk 0:02:14]}  Rxc1 {[%clk 0:02:12]} 17. Qxc1 {[%clk 0:02:15]}  Qd7 {[%clk 0:02:11]} 18. Nb3 {[%clk 0:02:02]}  Rc8 {[%clk 0:02:09]} 19. Qd2 {[%clk 0:02:02]}  Nxg3 {[%clk 0:01:33]} 20. hxg3 {[%clk 0:02:03]}  Qg4 {[%clk 0:01:34]} 21. Qd3 {[%clk 0:01:47]}  Qh5 {[%clk 0:01:28]} 22. e5 {[%clk 0:01:40]}  dxe5 {[%clk 0:01:27]} 23. dxe5 {[%clk 0:01:41]}  Ng4 {[%clk 0:01:28]} 24. e6 {[%clk 0:01:20]}  fxe6 {[%clk 0:00:36]} 25. Qh7+ {[%clk 0:00:56]}  Kf8 {[%clk 0:00:33]} 26. Bg6 {[%clk 0:00:37]}  Nf6 {[%clk 0:00:17]} 27. Qxg7+ {[%clk 0:00:31]}  Kxg7 {[%clk 0:00:18]} 28. Bxh5 {[%clk 0:00:31]}  Nxh5 {[%clk 0:00:19]} 29. Rxe6 {[%clk 0:00:31]}  Rc7 {[%clk 0:00:15]} 30. Ne5 {[%clk 0:00:24]}  Nf6 {[%clk 0:00:14]} 31. Nd4 {[%clk 0:00:20]}  Bd5 {[%clk 0:00:11]} 32. Nf5+ {[%clk 0:00:18]}  Kf8 {[%clk 0:00:11]} 33. Ng6+ {[%clk 0:00:14]}  Kf7 {[%clk 0:00:11]} 34. Rxe7+ {[%clk 0:00:13]}  Rxe7 {[%clk 0:00:07]} 35. Ngxe7 {[%clk 0:00:14]}  Bxa2 {[%clk 0:00:07]} 36. Nc6 {[%clk 0:00:13]}  a5 {[%clk 0:00:04]} 37. Nfd4 {[%clk 0:00:10]}  Nd5 {[%clk 0:00:03]} 38. f4 {[%clk 0:00:10]}  gxf4 {[%clk 0:00:03]} 39. gxf4 {[%clk 0:00:10]}  Nxf4 {[%clk 0:00:04]} 40. Nf5 {[%clk 0:00:08]}  Kg6 {[%clk 0:00:02]} 41. Nfe7+ {[%clk 0:00:07]}  Kg5 {[%clk 0:00:03]} 42. Nc8 {[%clk 0:00:08]}  Nd5 {[%clk 0:00:02]} 43. Ne5 {[%clk 0:00:05]}  Bb3 {[%clk 0:00:03]} 44. Nd7 {[%clk 0:00:05]}  b5 {[%clk 0:00:03]} 45. Nd6 {[%clk 0:00:04]}  Bc4 {[%clk 0:00:02]} 46. Nb6 {[%clk 0:00:02]}  Bd3 {[%clk 0:00:02]} 47. Nxd5 {[%clk 0:00:01]}  a4 {[%clk 0:00:02]} 48. Nb7 {[%clk 0:00:01]}  b4 {[%clk 0:00:03]} 49. Nc5 {[%clk 0:00:00]}  a3 {[%clk 0:00:03]} 0-1

[Event "December 5 Late 2023"]
[Site "https://www.chess.com"]
[Date "2023.12.05"]
[Round "2"]
[White "Mazzilli, Piero"]
[Black "Przybylski, Wojciech"]
[Result "0-1"]
[Board "125"]
[TimeControl "180+1"]
[WhiteFideId "807087"]
[BlackFideId "1117599"]
[WhiteElo "2327"]
[BlackElo "2555"]
[WhiteTeam "ITA"]
[BlackTeam "POL"]
[WhiteClock "0:00:00"]
[BlackClock "0:00:58"]

1. e4 {[%clk 0:03:00]}  e5 {[%clk 0:02:59]} 2. Nf3 {[%clk 0:03:01]}  Nc6 {[%clk 0:02:58]} 3. Nc3 {[%clk 0:03:01]}  Nf6 {[%clk 0:02:58]} 4. d4 {[%clk 0:03:01]}  exd4 {[%clk 0:02:57]} 5. Nxd4 {[%clk 0:03:02]}  Bb4 {[%clk 0:02:55]} 6. Nxc6 {[%clk 0:03:02]}  dxc6 {[%clk 0:02:54]} 7. Qxd8+ {[%clk 0:03:01]}  Kxd8 {[%clk 0:02:54]} 8. Bd2 {[%clk 0:02:41]}  Be6 {[%clk 0:02:48]} 9. O-O-O {[%clk 0:02:38]}  Kc8 {[%clk 0:02:48]} 10. f3 {[%clk 0:02:32]}  a5 {[%clk 0:02:47]} 11. a3 {[%clk 0:02:31]}  Bc5 {[%clk 0:02:41]} 12. Bg5 {[%clk 0:02:27]}  b5 {[%clk 0:02:34]} 13. Bxf6 {[%clk 0:02:25]}  gxf6 {[%clk 0:02:33]} 14. Ne2 {[%clk 0:02:18]}  Be3+ {[%clk 0:02:29]} 15. Kb1 {[%clk 0:02:18]}  Rd8 {[%clk 0:02:29]} 16. Rxd8+ {[%clk 0:02:14]}  Kxd8 {[%clk 0:02:28]} 17. Ng3 {[%clk 0:02:09]}  Ke8 {[%clk 0:02:18]} 18. Be2 {[%clk 0:02:08]}  a4 {[%clk 0:02:13]} 19. Rd1 {[%clk 0:02:04]}  Bc5 {[%clk 0:02:11]} 20. Nf5 {[%clk 0:01:54]}  Bf8 {[%clk 0:02:05]} 21. c3 {[%clk 0:01:50]}  Rb8 {[%clk 0:02:03]} 22. Nd4 {[%clk 0:01:41]}  Bd7 {[%clk 0:02:02]} 23. Rc1 {[%clk 0:00:55]}  c5 {[%clk 0:01:58]} 24. Nc2 {[%clk 0:00:54]}  c4 {[%clk 0:01:54]} 25. Nb4 {[%clk 0:00:45]}  c6 {[%clk 0:01:52]} 26. Rd1 {[%clk 0:00:44]}  f5 {[%clk 0:01:49]} 27. Re1 {[%clk 0:00:29]}  fxe4 {[%clk 0:01:46]} 28. Bd1 {[%clk 0:00:27]}  f5 {[%clk 0:01:32]} 29. g4 {[%clk 0:00:25]}  Kf7 {[%clk 0:01:18]} 30. gxf5 {[%clk 0:00:24]}  exf3 {[%clk 0:01:13]} 31. Bc2 {[%clk 0:00:19]}  f2 {[%clk 0:01:10]} 32. Rf1 {[%clk 0:00:19]}  Bc5 {[%clk 0:01:09]} 33. Na6 {[%clk 0:00:18]}  Re8 {[%clk 0:01:00]} 34. Nxc5 {[%clk 0:00:09]}  Re1+ {[%clk 0:00:59]} 35. Ka2 {[%clk 0:00:04]}  Rxf1 {[%clk 0:00:59]} 36. Nxd7 {[%clk 0:00:00]}  Re1 {[%clk 0:00:58]} 0-1

[Event "December 5 Late 2023"]
[Site "https://www.chess.com"]
[Date "2023.12.05"]
[Round "2"]
[White "Hajiyev, Kanan"]
[Black "Biliy, Vadim"]
[Result "1-0"]
[Board "127"]
[TimeControl "180+1"]
[WhiteFideId "13404148"]
[BlackFideId "14114127"]
[WhiteElo "2548"]
[BlackElo "2323"]
[WhiteTeam "AZE"]
[BlackTeam "UKR"]
[WhiteClock "0:02:30"]
[BlackClock "0:01:26"]

1. d4 {[%clk 0:03:00]}  c5 {[%clk 0:02:58]} 2. Nf3 {[%clk 0:03:01]}  cxd4 {[%clk 0:02:58]} 3. Nxd4 {[%clk 0:03:02]}  Nc6 {[%clk 0:02:57]} 4. c4 {[%clk 0:03:02]}  g6 {[%clk 0:02:54]} 5. Nc3 {[%clk 0:03:02]}  Bg7 {[%clk 0:02:54]} 6. Nc2 {[%clk 0:03:02]}  b6 {[%clk 0:02:52]} 7. e4 {[%clk 0:03:02]}  Bb7 {[%clk 0:02:53]} 8. Be2 {[%clk 0:03:02]}  Nf6 {[%clk 0:02:49]} 9. O-O {[%clk 0:03:02]}  O-O {[%clk 0:02:49]} 10. b3 {[%clk 0:03:02]}  d6 {[%clk 0:02:47]} 11. Rb1 {[%clk 0:02:59]}  a6 {[%clk 0:02:35]} 12. Bb2 {[%clk 0:02:51]}  e6 {[%clk 0:02:27]} 13. Qd2 {[%clk 0:02:49]}  Qc7 {[%clk 0:02:25]} 14. Rfd1 {[%clk 0:02:47]}  Rfd8 {[%clk 0:02:24]} 15. Ne3 {[%clk 0:02:46]}  Na5 {[%clk 0:01:57]} 16. Rbc1 {[%clk 0:02:44]}  Nxe4 {[%clk 0:01:55]} 17. Nxe4 {[%clk 0:02:43]}  Bxe4 {[%clk 0:01:55]} 18. Bxg7 {[%clk 0:02:43]}  Bxg2 {[%clk 0:01:48]} 19. Bf6 {[%clk 0:02:36]}  Bb7 {[%clk 0:01:40]} 20. Nd5 {[%clk 0:02:31]}  exd5 {[%clk 0:01:26]} 21. Qh6 {[%clk 0:02:30]} 1-0

[Event "December 5 Late 2023"]
[Site "https://www.chess.com"]
[Date "2023.12.05"]
[Round "2"]
[White "Erzhanov, Arman"]
[Black "Gerbelli Neto, Eduardo"]
[Result "1/2-1/2"]
[Board "129"]
[TimeControl "180+1"]
[WhiteFideId "4138821"]
[BlackFideId "2103281"]
[WhiteElo "2527"]
[BlackElo "2322"]
[WhiteTeam "KAZ"]
[BlackTeam "BRA"]
[WhiteClock "0:00:07"]
[BlackClock "0:00:09"]

1. e4 {[%clk 0:02:59]}  e5 {[%clk 0:02:59]} 2. Nf3 {[%clk 0:02:55]}  Nc6 {[%clk 0:02:59]} 3. Be2 {[%clk 0:02:55]}  Nf6 {[%clk 0:02:59]} 4. d3 {[%clk 0:02:55]}  Bc5 {[%clk 0:02:59]} 5. O-O {[%clk 0:02:55]}  d6 {[%clk 0:02:59]} 6. Nbd2 {[%clk 0:02:55]}  a5 {[%clk 0:02:58]} 7. c3 {[%clk 0:02:55]}  O-O {[%clk 0:02:58]} 8. b3 {[%clk 0:02:55]}  h6 {[%clk 0:02:54]} 9. h3 {[%clk 0:02:55]}  Be6 {[%clk 0:02:50]} 10. a3 {[%clk 0:02:54]}  d5 {[%clk 0:02:46]} 11. Re1 {[%clk 0:02:53]}  Re8 {[%clk 0:02:38]} 12. Bf1 {[%clk 0:02:53]}  dxe4 {[%clk 0:02:26]} 13. dxe4 {[%clk 0:02:53]}  Qd7 {[%clk 0:02:24]} 14. Qc2 {[%clk 0:02:52]}  Rad8 {[%clk 0:02:20]} 15. Nc4 {[%clk 0:02:53]}  Bxc4 {[%clk 0:02:04]} 16. Bxc4 {[%clk 0:02:52]}  Nh5 {[%clk 0:02:00]} 17. b4 {[%clk 0:02:51]}  Bb6 {[%clk 0:01:56]} 18. b5 {[%clk 0:02:28]}  Nb8 {[%clk 0:01:53]} 19. a4 {[%clk 0:02:25]}  Qe7 {[%clk 0:01:53]} 20. Bd5 {[%clk 0:01:59]}  c6 {[%clk 0:01:49]} 21. bxc6 {[%clk 0:01:59]}  bxc6 {[%clk 0:01:49]} 22. Bc4 {[%clk 0:01:57]}  Nd7 {[%clk 0:01:47]} 23. Rb1 {[%clk 0:01:56]}  Rb8 {[%clk 0:01:41]} 24. Qa2 {[%clk 0:01:47]}  Qf6 {[%clk 0:01:37]} 25. Bf1 {[%clk 0:01:20]}  Nf4 {[%clk 0:01:34]} 26. Bxf4 {[%clk 0:01:07]}  Qxf4 {[%clk 0:01:34]} 27. Qd2 {[%clk 0:01:01]}  Nc5 {[%clk 0:01:29]} 28. Qc2 {[%clk 0:00:44]}  Ne6 {[%clk 0:00:48]} 29. Bc4 {[%clk 0:00:28]}  Ng5 {[%clk 0:00:43]} 30. Nxg5 {[%clk 0:00:27]}  hxg5 {[%clk 0:00:44]} 31. Rf1 {[%clk 0:00:20]}  Red8 {[%clk 0:00:43]} 32. Rbd1 {[%clk 0:00:19]}  Rxd1 {[%clk 0:00:42]} 33. Rxd1 {[%clk 0:00:19]}  Rd8 {[%clk 0:00:30]} 34. Rxd8+ {[%clk 0:00:18]}  Bxd8 {[%clk 0:00:31]} 35. Kf1 {[%clk 0:00:12]}  Bb6 {[%clk 0:00:31]} 36. f3 {[%clk 0:00:07]}  Qe3 {[%clk 0:00:29]} 37. Bb3 {[%clk 0:00:01]}  Qg1+ {[%clk 0:00:27]} 38. Ke2 {[%clk 0:00:02]}  Qxg2+ {[%clk 0:00:28]} 39. Kd3 {[%clk 0:00:03]}  Qxf3+ {[%clk 0:00:28]} 40. Kc4 {[%clk 0:00:03]}  Qf1+ {[%clk 0:00:26]} 41. Qd3 {[%clk 0:00:03]}  Qxd3+ {[%clk 0:00:22]} 42. Kxd3 {[%clk 0:00:04]}  Kf8 {[%clk 0:00:22]} 43. Bc4 {[%clk 0:00:04]}  Ke7 {[%clk 0:00:22]} 44. Ba6 {[%clk 0:00:04]}  g6 {[%clk 0:00:23]} 45. Bb7 {[%clk 0:00:04]}  Kd6 {[%clk 0:00:20]} 46. Bc8 {[%clk 0:00:04]}  Bd8 {[%clk 0:00:19]} 47. Kc4 {[%clk 0:00:04]}  Bb6 {[%clk 0:00:18]} 48. Bg4 {[%clk 0:00:04]}  Bf2 {[%clk 0:00:17]} 49. Bc8 {[%clk 0:00:04]}  f6 {[%clk 0:00:17]} 50. Bg4 {[%clk 0:00:04]}  Bb6 {[%clk 0:00:10]} 51. Bc8 {[%clk 0:00:04]}  Bd8 {[%clk 0:00:10]} 52. Bg4 {[%clk 0:00:05]}  Be7 {[%clk 0:00:10]} 53. Bc8 {[%clk 0:00:05]}  Kc7 {[%clk 0:00:11]} 54. Bg4 {[%clk 0:00:05]}  Kd8 {[%clk 0:00:11]} 55. Be6 {[%clk 0:00:06]}  Ke8 {[%clk 0:00:12]} 56. Bc8 {[%clk 0:00:05]}  Kf7 {[%clk 0:00:10]} 57. Bg4 {[%clk 0:00:06]}  Kg7 {[%clk 0:00:09]} 58. Bd7 {[%clk 0:00:06]}  Kh6 {[%clk 0:00:09]} 59. Bg4 {[%clk 0:00:05]}  Bd6 {[%clk 0:00:10]} 60. Kd3 {[%clk 0:00:06]}  Kg7 {[%clk 0:00:08]} 61. Be6 {[%clk 0:00:05]}  Kf8 {[%clk 0:00:08]} 62. Bd7 {[%clk 0:00:05]}  Ke7 {[%clk 0:00:09]} 63. Bg4 {[%clk 0:00:06]}  Bc5 {[%clk 0:00:07]} 64. Kc4 {[%clk 0:00:06]}  Bd6 {[%clk 0:00:08]} 65. Bc8 {[%clk 0:00:06]}  Kf7 {[%clk 0:00:07]} 66. Bg4 {[%clk 0:00:07]}  Ke7 {[%clk 0:00:08]} 67. Bc8 {[%clk 0:00:07]}  Kf7 {[%clk 0:00:08]} 68. Bg4 {[%clk 0:00:07]}  Ke7 {[%clk 0:00:09]} 1/2-1/2

[Event "December 5 Late 2023"]
[Site "https://www.chess.com"]
[Date "2023.12.05"]
[Round "2"]
[White "Bayo Milagro, Alvaro"]
[Black "Rose, Felix"]
[Result "1-0"]
[Board "130"]
[TimeControl "180+1"]
[WhiteFideId "22275240"]
[BlackFideId "5105722"]
[WhiteElo "2525"]
[BlackElo "2317"]
[WhiteTeam "ESP"]
[BlackTeam "MEX"]
[WhiteClock "0:00:06"]
[BlackClock "0:00:05"]

1. e4 {[%clk 0:02:57]}  c5 {[%clk 0:02:58]} 2. Nf3 {[%clk 0:02:56]}  g6 {[%clk 0:02:58]} 3. Nc3 {[%clk 0:02:53]}  Bg7 {[%clk 0:02:55]} 4. Bc4 {[%clk 0:02:52]}  Nc6 {[%clk 0:02:55]} 5. O-O {[%clk 0:02:49]}  e6 {[%clk 0:02:53]} 6. a3 {[%clk 0:02:47]}  Nge7 {[%clk 0:02:54]} 7. Ba2 {[%clk 0:02:47]}  O-O {[%clk 0:02:53]} 8. d3 {[%clk 0:02:47]}  b6 {[%clk 0:02:53]} 9. Bf4 {[%clk 0:02:43]}  d5 {[%clk 0:02:46]} 10. Qd2 {[%clk 0:02:42]}  Nd4 {[%clk 0:02:39]} 11. Nxd4 {[%clk 0:02:39]}  cxd4 {[%clk 0:02:39]} 12. Ne2 {[%clk 0:02:38]}  dxe4 {[%clk 0:02:26]} 13. dxe4 {[%clk 0:02:38]}  Bb7 {[%clk 0:02:25]} 14. Ng3 {[%clk 0:02:31]}  Rc8 {[%clk 0:02:21]} 15. Rac1 {[%clk 0:02:31]}  h5 {[%clk 0:02:16]} 16. h4 {[%clk 0:02:10]}  Qd7 {[%clk 0:02:03]} 17. Bb3 {[%clk 0:02:03]}  Rfd8 {[%clk 0:01:45]} 18. Rfe1 {[%clk 0:01:54]}  Nc6 {[%clk 0:01:40]} 19. Bg5 {[%clk 0:01:51]}  Re8 {[%clk 0:01:34]} 20. Bh6 {[%clk 0:01:49]}  Ne5 {[%clk 0:01:26]} 21. Bxg7 {[%clk 0:01:48]}  Kxg7 {[%clk 0:01:26]} 22. Qg5 {[%clk 0:01:43]}  Qb5 {[%clk 0:00:31]} 23. Nxh5+ {[%clk 0:01:07]}  Kf8 {[%clk 0:00:31]} 24. Nf6 {[%clk 0:01:06]}  Red8 {[%clk 0:00:29]} 25. f4 {[%clk 0:01:00]}  d3 {[%clk 0:00:24]} 26. cxd3 {[%clk 0:00:34]}  Qxb3 {[%clk 0:00:12]} 27. Qxe5 {[%clk 0:00:27]}  Rxc1 {[%clk 0:00:08]} 28. Rxc1 {[%clk 0:00:27]}  Qxd3 {[%clk 0:00:09]} 29. Rc7 {[%clk 0:00:20]}  Qd4+ {[%clk 0:00:08]} 30. Qxd4 {[%clk 0:00:20]}  Rxd4 {[%clk 0:00:09]} 31. Rxb7 {[%clk 0:00:20]}  Kg7 {[%clk 0:00:04]} 32. Ne8+ {[%clk 0:00:17]}  Kf8 {[%clk 0:00:05]} 33. Nf6 {[%clk 0:00:16]}  Kg7 {[%clk 0:00:05]} 34. e5 {[%clk 0:00:16]}  Rxf4 {[%clk 0:00:05]} 35. g3 {[%clk 0:00:15]}  Rf3 {[%clk 0:00:03]} 36. Kg2 {[%clk 0:00:15]}  Rb3 {[%clk 0:00:04]} 37. Rxa7 {[%clk 0:00:15]}  Rxb2+ {[%clk 0:00:04]} 38. Kh3 {[%clk 0:00:16]}  Re2 {[%clk 0:00:05]} 39. Ng4 {[%clk 0:00:12]}  b5 {[%clk 0:00:04]} 40. Rb7 {[%clk 0:00:12]}  Ra2 {[%clk 0:00:05]} 41. Nf6 {[%clk 0:00:11]}  Rxa3 {[%clk 0:00:05]} 42. Rxb5 {[%clk 0:00:10]}  Re3 {[%clk 0:00:05]} 43. Kg2 {[%clk 0:00:09]}  Kf8 {[%clk 0:00:05]} 44. g4 {[%clk 0:00:07]}  Kg7 {[%clk 0:00:04]} 45. g5 {[%clk 0:00:06]}  Kf8 {[%clk 0:00:05]} 46. Rb8+ {[%clk 0:00:06]}  Ke7 {[%clk 0:00:05]} 47. Re8# {[%clk 0:00:06]} 1-0

[Event "December 5 Late 2023"]
[Site "https://www.chess.com"]
[Date "2023.12.05"]
[Round "2"]
[White "Kotyk, Michael"]
[Black "Kornyukov, Alexey"]
[Result "1/2-1/2"]
[Board "135"]
[TimeControl "180+1"]
[WhiteFideId "16214501"]
[BlackFideId "4150457"]
[WhiteElo "2512"]
[BlackElo "2310"]
[WhiteTeam "GER"]
[BlackTeam "RUS"]
[WhiteClock "0:00:07"]
[BlackClock "0:00:03"]

1. e4 {[%clk 0:03:00]}  c5 {[%clk 0:02:45]} 2. Nc3 {[%clk 0:03:01]}  Nc6 {[%clk 0:02:40]} 3. f4 {[%clk 0:03:01]}  g6 {[%clk 0:02:38]} 4. Nf3 {[%clk 0:03:02]}  Bg7 {[%clk 0:02:39]} 5. Bb5 {[%clk 0:03:03]}  Nd4 {[%clk 0:02:36]} 6. O-O {[%clk 0:03:03]}  Nxb5 {[%clk 0:02:27]} 7. Nxb5 {[%clk 0:03:04]}  Nf6 {[%clk 0:02:25]} 8. e5 {[%clk 0:02:58]}  Nd5 {[%clk 0:02:24]} 9. d3 {[%clk 0:02:58]}  O-O {[%clk 0:02:17]} 10. Nc3 {[%clk 0:02:55]}  Nxc3 {[%clk 0:02:07]} 11. bxc3 {[%clk 0:02:56]}  d6 {[%clk 0:02:07]} 12. d4 {[%clk 0:02:55]}  Bg4 {[%clk 0:01:32]} 13. h3 {[%clk 0:02:52]}  Bf5 {[%clk 0:01:13]} 14. d5 {[%clk 0:02:36]}  dxe5 {[%clk 0:00:56]} 15. fxe5 {[%clk 0:02:37]}  Be4 {[%clk 0:00:50]} 16. c4 {[%clk 0:02:23]}  Bxf3 {[%clk 0:00:39]} 17. Qxf3 {[%clk 0:02:24]}  Bxe5 {[%clk 0:00:39]} 18. Rb1 {[%clk 0:02:24]}  b6 {[%clk 0:00:38]} 19. Bh6 {[%clk 0:02:21]}  Bg7 {[%clk 0:00:35]} 20. Bxg7 {[%clk 0:02:16]}  Kxg7 {[%clk 0:00:36]} 21. Rbe1 {[%clk 0:02:16]}  Qd6 {[%clk 0:00:34]} 22. Qc3+ {[%clk 0:02:14]}  Kg8 {[%clk 0:00:32]} 23. Re5 {[%clk 0:02:14]}  e6 {[%clk 0:00:20]} 24. Rf6 {[%clk 0:02:03]}  Rae8 {[%clk 0:00:16]} 25. Qe3 {[%clk 0:01:26]}  Qd8 {[%clk 0:00:15]} 26. Qf4 {[%clk 0:01:12]}  exd5 {[%clk 0:00:14]} 27. Rxe8 {[%clk 0:00:45]}  Qxe8 {[%clk 0:00:15]} 28. cxd5 {[%clk 0:00:43]}  Qd7 {[%clk 0:00:15]} 29. c4 {[%clk 0:00:37]}  Re8 {[%clk 0:00:15]} 30. h4 {[%clk 0:00:30]}  h5 {[%clk 0:00:14]} 31. Kh2 {[%clk 0:00:25]}  Qe7 {[%clk 0:00:14]} 32. d6 {[%clk 0:00:16]}  Qd7 {[%clk 0:00:14]} 33. Kg3 {[%clk 0:00:07]}  Re6 {[%clk 0:00:14]} 34. Rxe6 {[%clk 0:00:07]}  Qxe6 {[%clk 0:00:14]} 35. Qd2 {[%clk 0:00:06]}  Qg4+ {[%clk 0:00:12]} 36. Kh2 {[%clk 0:00:07]}  Qxh4+ {[%clk 0:00:12]} 37. Kg1 {[%clk 0:00:08]}  Qd8 {[%clk 0:00:10]} 38. d7 {[%clk 0:00:09]}  Kg7 {[%clk 0:00:10]} 39. Qd6 {[%clk 0:00:09]}  h4 {[%clk 0:00:08]} 40. Qd5 {[%clk 0:00:07]}  Kf6 {[%clk 0:00:06]} 41. Qd6+ {[%clk 0:00:07]}  Kg7 {[%clk 0:00:06]} 42. Qe5+ {[%clk 0:00:07]}  Kf8 {[%clk 0:00:04]} 43. Qd6+ {[%clk 0:00:07]}  Kg7 {[%clk 0:00:03]} 1/2-1/2

[Event "December 5 Late 2023"]
[Site "https://www.chess.com"]
[Date "2023.12.05"]
[Round "2"]
[White "Shapiro, Viktor"]
[Black "Modric, Nesa"]
[Result "1-0"]
[Board "136"]
[TimeControl "180+1"]
[WhiteFideId "4175700"]
[BlackFideId "922579"]
[WhiteElo "2511"]
[BlackElo "2308"]
[WhiteTeam "RUS"]
[BlackTeam "SRB"]
[WhiteClock "0:01:31"]
[BlackClock "0:00:11"]

1. c4 {[%clk 0:03:00]}  e6 {[%clk 0:02:59]} 2. Nc3 {[%clk 0:03:01]}  d5 {[%clk 0:02:59]} 3. d4 {[%clk 0:03:01]}  Nf6 {[%clk 0:03:00]} 4. Nf3 {[%clk 0:03:01]}  Be7 {[%clk 0:03:00]} 5. Bg5 {[%clk 0:03:02]}  O-O {[%clk 0:03:00]} 6. e3 {[%clk 0:03:02]}  h6 {[%clk 0:03:00]} 7. Bxf6 {[%clk 0:03:02]}  Bxf6 {[%clk 0:03:01]} 8. Qc2 {[%clk 0:02:57]}  dxc4 {[%clk 0:02:56]} 9. Bxc4 {[%clk 0:02:56]}  c5 {[%clk 0:02:56]} 10. dxc5 {[%clk 0:02:54]}  Qa5 {[%clk 0:02:54]} 11. Rc1 {[%clk 0:02:51]}  Qxc5 {[%clk 0:02:47]} 12. Qe2 {[%clk 0:02:24]}  Nc6 {[%clk 0:02:38]} 13. O-O {[%clk 0:02:24]}  Ne5 {[%clk 0:02:29]} 14. Ne4 {[%clk 0:02:18]}  Qe7 {[%clk 0:02:12]} 15. Nxf6+ {[%clk 0:02:18]}  Qxf6 {[%clk 0:02:11]} 16. Nxe5 {[%clk 0:02:18]}  Qxe5 {[%clk 0:02:12]} 17. Rfd1 {[%clk 0:02:18]}  b6 {[%clk 0:02:00]} 18. f4 {[%clk 0:02:12]}  Qf6 {[%clk 0:01:48]} 19. b3 {[%clk 0:01:48]}  Bb7 {[%clk 0:01:47]} 20. Rd7 {[%clk 0:01:48]}  Rab8 {[%clk 0:01:44]} 21. Rcd1 {[%clk 0:01:45]}  Rfd8 {[%clk 0:01:42]} 22. Qd2 {[%clk 0:01:37]}  Rxd7 {[%clk 0:01:37]} 23. Qxd7 {[%clk 0:01:37]}  g6 {[%clk 0:00:59]} 24. Qc7 {[%clk 0:01:33]}  Rf8 {[%clk 0:00:12]} 25. Qxb7 {[%clk 0:01:32]}  Qc3 {[%clk 0:00:11]} 26. Qf3 {[%clk 0:01:31]} 1-0